[Event "SWE-ch Class 1 2019"]
[Site "Eskilstuna"]
[Date "2019.07.08"]
[Round "1.8"]
[White "Muganlinskij, Hussein"]
[Black "Carnstam, Tomas"]
[Result "1-0"]
[ECO "B06"]
[WhiteElo "2022"]
[BlackElo "1967"]
[Annotator "NA"]
[PlyCount "65"]
[EventDate "2019.07.06"]
[EventType "tourn"]
[EventCountry "SWE"]
[SourceTitle "playchess.com"]
[Source "ChessBase"]
[SourceQuality "1"]
[TimeControl "40/5400+30:1800+30"]

1. d4 {[%emt 0:00:00]} g6 {[%emt 0:00:00]} 2. e4 {[%emt 0:00:00]} Bg7 {[%emt 0:00:00]} 3. c3 {[%emt 0:00:00]} Nf6 {[%emt 0:02:14]} 4. Qc2 {[%emt 0:01:22]} d6 {[%emt 0:13:03]} 5. Bg5 {[%emt 0:01:01]} h6 {[%emt 0:07:10]} 6. Bh4 {[%emt 0:00:11]} g5 {[%emt 0:00:34]} 7. Bg3 {[%emt 0:00:09]} Nh5 {[%emt 0:00:55]} 8. Bc4 {[%emt 0:03:48]} c6 {[%emt 0:12:56]} 9. Nf3 {[%emt 0:03:38]} b5 {[%emt 0:06:19]} 10. Bb3 {[%emt 0:03:05]} Nd7 {[%emt 0:02:09]} 11. a4 {[%emt 0:09:34]} Bb7 {[%emt 0:02:22]} 12. O-O {[%emt 0:05:46]} bxa4 {[%emt 0:03:40]} 13. Rxa4 {[%emt 0:01:14]} Nb6 {[%emt 0:00:50]} 14. Ra1 {[%emt 0:04:53]} O-O {[%emt 0:02:08]} 15. Nbd2 {[%emt 0:03:56]} d5 {[%emt 0:05:16]} 16. e5 {[%emt 0:02:33]} f5 {[%emt 0:02:54]} 17. exf6 {[%emt 0:00:51]} exf6 {[%emt 0:04:30]} 18. Rfe1 {[%emt 0:04:28]} Nxg3 {[%emt 0:03:31]} 19. hxg3 {[%emt 0:00:11]} Qd7 {[%emt 0:04:10]} 20. Ne4 {[%emt 0:05:15]} Bc8 {[%emt 0:07:47]} 21. Nc5 {[%emt 0:03:32]} Qf7 {[%emt 0:00:06]} 22. Qd3 {[%emt 0:02:45]} f5 {[%emt 0:07:38]} 23. Ne5 {[%emt 0:02:00]} Bxe5 {[%emt 0:00:03]} 24. Rxe5 {[%emt 0:00:32]} Nd7 {[%emt 0:01:42]} 25. Nxd7 {[%emt 0:02:06]} Bxd7 {[%emt 0:00:02]} 26. c4 {[%emt 0:00:19]} Be6 {[%emt 0:02:26]} 27. cxd5 {[%emt 0:04:05]} Bxd5 {[%emt 0:00:02]} 28. Bxd5 {[%emt 0:00:15]} cxd5 {[%emt 0:00:03]} 29. Ra6 {[%emt 0:00:14]} Kg7 {[%emt 0:04:02]} 30. Qf3 {[%emt 0:13:20]} Rad8 {[%emt 0:02:02]} 31. Qa3 {[%emt 0:01:14]} Rd7 {[%emt 0:00:21]} 32. Ree6 {[%emt 0:07:34]} Qh5 {[%emt 0:00:13]} 33. Rg6+ {[%emt 0:00:58]} 1-0

[Event "SWE-ch Class 1 2019"]
[Site "Eskilstuna"]
[Date "2019.07.08"]
[Round "1.9"]
[White "Arvidsson, Jonas"]
[Black "Johansson, Roland"]
[Result "1-0"]
[ECO "B77"]
[WhiteElo "1965"]
[BlackElo "2002"]
[Annotator "NA"]
[PlyCount "61"]
[EventDate "2019.07.06"]
[EventType "tourn"]
[EventCountry "SWE"]
[SourceTitle "playchess.com"]
[Source "ChessBase"]
[SourceQuality "1"]
[TimeControl "40/5400+30:1800+30"]

1. e4 {[%emt 0:00:00]} c5 {[%emt 0:00:00]} 2. Nf3 {[%emt 0:00:00]} Nc6 {[%emt 0:00:00]} 3. Nc3 {[%emt 0:00:29]} g6 {[%emt 0:00:00]} 4. d4 {[%emt 0:01:15]} cxd4 {[%emt 0:00:00]} 5. Nxd4 {[%emt 0:00:08]} Bg7 {[%emt 0:00:04]} 6. Be3 {[%emt 0:00:57]} Nf6 {[%emt 0:00:06]} 7. Bc4 {[%emt 0:03:06]} O-O {[%emt 0:12:52]} 8. Bb3 {[%emt 0:02:47]} a6 {[%emt 0:03:30]} 9. f3 {[%emt 0:04:14]} Qc7 {[%emt 0:04:46]} 10. Qd2 {[%emt 0:03:14]} Na5 {[%emt 0:06:36]} 11. O-O-O {[%emt 0:07:32]} Nc4 {[%emt 0:02:36]} 12. Bxc4 {[%emt 0:02:59]} Qxc4 {[%emt 0:00:08]} 13. Bh6 {[%emt 0:04:26]} d6 {[%emt 0:13:19]} 14. h4 {[%emt 0:04:15]} Kh8 {[%emt 0:16:10]} 15. Bxg7+ {[%emt 0:09:59]} Kxg7 {[%emt 0:00:10]} 16. h5 {[%emt 0:00:17]} Ng8 {[%emt 0:08:28]} 17. Nf5+ {[%emt 0:18:39]} Bxf5 {[%emt 0:05:09]} 18. exf5 {[%emt 0:00:06]} Rac8 {[%emt 0:02:19]} 19. Rh3 {[%emt 0:05:55]} h6 {[%emt 0:04:11]} 20. Rg3 {[%emt 0:06:01]} Qh4 {[%emt 0:05:09]} 21. Rh3 {[%emt 0:06:53]} Qg5 {[%emt 0:00:29]} 22. fxg6 {[%emt 0:03:27]} Qxd2+ {[%emt 0:01:38]} 23. Rxd2 {[%emt 0:00:07]} fxg6 {[%emt 0:00:05]} 24. hxg6 {[%emt 0:00:50]} Rf5 {[%emt 0:01:10]} 25. Nd5 {[%emt 0:02:19]} Kxg6 {[%emt 0:01:20]} 26. g4 {[%emt 0:01:41]} Re5 {[%emt 0:01:51]} 27. Rh1 {[%emt 0:02:05]} Rc5 {[%emt 0:01:08]} 28. Nf4+ {[%emt 0:00:24]} Kg5 {[%emt 0:01:07]} 29. Nd3 {[%emt 0:00:17]} Rcd5 {[%emt 0:00:24]} 30. f4+ {[%emt 0:00:16]} Kxg4 {[%emt 0:02:09]} 31. fxe5 {[%emt 0:00:29]} 1-0

[Event "SWE-ch Class 1 2019"]
[Site "Eskilstuna"]
[Date "2019.07.08"]
[Round "1.10"]
[White "Eriksson, Joel"]
[Black "Karlsson, Roger"]
[Result "1-0"]
[ECO "B12"]
[WhiteElo "1998"]
[BlackElo "1915"]
[Annotator "NA"]
[PlyCount "83"]
[EventDate "2019.07.06"]
[EventType "tourn"]
[EventCountry "SWE"]
[SourceTitle "playchess.com"]
[Source "ChessBase"]
[SourceQuality "1"]
[TimeControl "40/5400+30:1800+30"]

1. e4 {[%emt 0:00:00]} c6 {[%emt 0:00:00]} 2. d4 {[%emt 0:00:00]} d5 {[%emt 0:00:00]} 3. e5 {[%emt 0:00:00]} Bf5 {[%emt 0:00:09]} 4. Nf3 {[%emt 0:00:00]} e6 {[%emt 0:00:04]} 5. Be2 {[%emt 0:00:00]} c5 {[%emt 0:00:28]} 6. c3 {[%emt 0:00:37]} Nc6 {[%emt 0:00:31]} 7. O-O {[%emt 0:00:14]} Qb6 {[%emt 0:08:25]} 8. dxc5 {[%emt 0:01:03]} Bxc5 {[%emt 0:05:28]} 9. b4 {[%emt 0:00:25]} Bf8 {[%emt 0:04:51]} 10. Be3 {[%emt 0:06:06]} Qc7 {[%emt 0:06:16]} 11. Qa4 {[%emt 0:02:56]} a6 {[%emt 0:15:26]} 12. Na3 {[%emt 0:09:35]} O-O-O {[%emt 0:08:28]} 13. b5 {[%emt 0:05:34]} Qa5 {[%emt 0:07:33]} 14. Qxa5 {[%emt 0:03:21]} Nxa5 {[%emt 0:00:57]} 15. Bb6 {[%emt 0:02:23]} Bxa3 {[%emt 0:07:58]} 16. Bxa5 {[%emt 0:00:27]} Rd7 {[%emt 0:02:57]} 17. bxa6 {[%emt 0:03:01]} bxa6 {[%emt 0:01:39]} 18. Nd4 {[%emt 0:11:29]} Bg6 {[%emt 0:08:13]} 19. Bxa6+ {[%emt 0:05:58]} Kb8 {[%emt 0:02:12]} 20. Bb5 {[%emt 0:06:47]} Rb7 {[%emt 0:01:30]} 21. Nc6+ {[%emt 0:13:40]} Ka8 {[%emt 0:00:18]} 22. Ba6 {[%emt 0:02:21]} Rb2 {[%emt 0:07:04]} 23. Bb4 {[%emt 0:05:37]} Bxb4 {[%emt 0:00:00]} 24. cxb4 {[%emt 0:00:15]} Nh6 {[%emt 0:00:24]} 25. a4 {[%emt 0:01:48]} f6 {[%emt 0:03:01]} 26. b5 {[%emt 0:02:15]} Nf7 {[%emt 0:03:47]} 27. Rfc1 {[%emt 0:02:31]} Nxe5 {[%emt 0:01:50]} 28. Nxe5 {[%emt 0:02:41]} fxe5 {[%emt 0:00:01]} 29. Rc7 {[%emt 0:01:25]} d4 {[%emt 0:01:09]} 30. a5 {[%emt 0:06:23]} Bd3 {[%emt 0:02:06]} 31. Bb7+ {[%emt 0:00:45]} Kb8 {[%emt 0:00:05]} 32. b6 {[%emt 0:00:07]} Rf8 {[%emt 0:01:40]} 33. f3 {[%emt 0:00:50]} e4 {[%emt 0:00:59]} 34. Bxe4 {[%emt 0:02:04]} Bxe4 {[%emt 0:00:48]} 35. fxe4 {[%emt 0:00:07]} d3 {[%emt 0:00:35]} 36. Rd1 {[%emt 0:02:21]} Rd8 {[%emt 0:00:26]} 37. Rcc1 {[%emt 0:01:34]} Re2 {[%emt 0:00:23]} 38. a6 {[%emt 0:00:33]} Rxe4 {[%emt 0:00:39]} 39. b7 {[%emt 0:01:00]} Ra4 {[%emt 0:00:35]} 40. Rxd3 {[%emt 0:00:39]} Rf8 {[%emt 0:00:25]} 41. Rdc3 {[%emt 0:30:50]} Ka7 {[%emt 0:00:40]} 42. Rc8 {[%emt 0:01:07]} 1-0

[Event "SWE-ch Class 1 2019"]
[Site "Eskilstuna"]
[Date "2019.07.09"]
[Round "2.1"]
[White "Bernhard, Jonathan"]
[Black "Forsberg, Andre"]
[Result "1-0"]
[ECO "A30"]
[WhiteElo "1917"]
[BlackElo "1982"]
[Annotator "NA"]
[PlyCount "79"]
[EventDate "2019.07.06"]
[EventType "tourn"]
[EventCountry "SWE"]
[SourceTitle "playchess.com"]
[Source "ChessBase"]
[SourceQuality "1"]
[TimeControl "40/5400+30:1800+30"]

1. Nf3 {[%emt 0:00:00]} Nf6 {[%emt 0:00:00]} 2. c4 {[%emt 0:00:00]} e6 {[%emt 0:00:01]} 3. Nc3 {[%emt 0:00:00]} c5 {[%emt 0:02:15]} 4. g3 {[%emt 0:02:41]} b6 {[%emt 0:01:00]} 5. Bg2 {[%emt 0:00:21]} Bb7 {[%emt 0:00:20]} 6. O-O {[%emt 0:00:19]} Be7 {[%emt 0:00:45]} 7. d4 {[%emt 0:04:40]} cxd4 {[%emt 0:01:25]} 8. Qxd4 {[%emt 0:01:18]} Bc5 {[%emt 0:00:49]} 9. Qh4 {[%emt 0:01:29]} Be7 {[%emt 0:12:43]} 10. Bg5 {[%emt 0:03:56]} O-O {[%emt 0:11:12]} 11. e4 {[%emt 0:03:00]} d6 {[%emt 0:20:31]} 12. Rfd1 {[%emt 0:09:12]} Nc6 {[%emt 0:18:59]} 13. e5 {[%emt 0:14:50]} Ne8 {[%emt 0:00:50]} 14. Bxe7 {[%emt 0:02:38]} Nxe7 {[%emt 0:01:04]} 15. Ng5 {[%emt 0:01:46]} h6 {[%emt 0:00:51]} 16. Bxb7 {[%emt 0:03:37]} Ng6 {[%emt 0:04:28]} 17. Qe4 {[%emt 0:05:43]} Rb8 {[%emt 0:07:57]} 18. Nf3 {[%emt 0:01:22]} f5 {[%emt 0:06:31]} 19. exf6 {[%emt 0:00:43]} Qxf6 {[%emt 0:00:11]} 20. Rd3 {[%emt 0:04:01]} d5 {[%emt 0:01:11]} 21. Qxe6+ {[%emt 0:04:47]} Qxe6 {[%emt 0:00:55]} 22. Bxd5 {[%emt 0:00:03]} Nc7 {[%emt 0:02:19]} 23. Bxe6+ {[%emt 0:00:55]} Nxe6 {[%emt 0:00:06]} 24. b4 {[%emt 0:04:00]} Rbc8 {[%emt 0:01:44]} 25. Re1 {[%emt 0:00:13]} Nef4 {[%emt 0:02:17]} 26. gxf4 {[%emt 0:02:52]} Nxf4 {[%emt 0:01:01]} 27. Rd4 {[%emt 0:02:24]} Nh3+ {[%emt 0:00:40]} 28. Kg2 {[%emt 0:00:09]} Nf4+ {[%emt 0:01:18]} 29. Kg3 {[%emt 0:02:40]} Nh5+ {[%emt 0:00:13]} 30. Kg4 {[%emt 0:00:31]} Nf6+ {[%emt 0:00:13]} 31. Kh3 {[%emt 0:00:50]} g5 {[%emt 0:01:08]} 32. Ne5 {[%emt 0:00:48]} Nh5 {[%emt 0:00:31]} 33. Nd5 {[%emt 0:01:18]} Rce8 {[%emt 0:00:31]} 34. Kg4 {[%emt 0:04:55]} Rxf2 {[%emt 0:00:30]} 35. Kxh5 {[%emt 0:00:29]} Rxh2+ {[%emt 0:00:23]} 36. Kg6 {[%emt 0:00:21]} Re6+ {[%emt 0:00:35]} 37. Nf6+ {[%emt 0:00:08]} Kf8 {[%emt 0:00:12]} 38. Rd8+ {[%emt 0:00:55]} Ke7 {[%emt 0:00:11]} 39. Rd7+ {[%emt 0:00:11]} Kf8 {[%emt 0:00:13]} 40. Rf7# {[%emt 0:00:09]} 1-0

[Event "SWE-ch Class 1 2019"]
[Site "Eskilstuna"]
[Date "2019.07.09"]
[Round "2.2"]
[White "Bjorkman, Filip"]
[Black "Kardell, Mathias"]
[Result "1-0"]
[ECO "C10"]
[WhiteElo "1956"]
[BlackElo "2064"]
[Annotator "NA"]
[PlyCount "83"]
[EventDate "2019.07.06"]
[EventType "tourn"]
[EventCountry "SWE"]
[SourceTitle "playchess.com"]
[Source "ChessBase"]
[SourceQuality "1"]
[TimeControl "40/5400+30:1800+30"]

1. e4 {[%emt 0:00:00]} e6 {[%emt 0:00:00]} 2. d4 {[%emt 0:00:00]} d5 {[%emt 0:00:00]} 3. Nd2 {[%emt 0:00:00]} dxe4 {[%emt 0:02:34]} 4. Nxe4 {[%emt 0:00:00]} Be7 {[%emt 0:00:26]} 5. Nf3 {[%emt 0:00:00]} Nf6 6. Nxf6+ {[%emt 0:00:02]} Bxf6 {[%emt 0:01:07]} 7. Bd3 {[%emt 0:00:14]} Nc6 {[%emt 0:05:04]} 8. c3 {[%emt 0:00:21]} O-O {[%emt 0:03:15]} 9. O-O {[%emt 0:01:13]} Re8 {[%emt 0:17:07]} 10. Bf4 {[%emt 0:14:04]} Ne7 {[%emt 0:07:04]} 11. Qc2 {[%emt 0:01:57]} Ng6 {[%emt 0:04:53]} 12. Bg3 {[%emt 0:00:00]} c6 {[%emt 0:12:42]} 13. Rad1 {[%emt 0:00:00]} Qa5 {[%emt 0:05:07]} 14. b4 {[%emt 0:13:54]} Qh5 {[%emt 0:02:17]} 15. Be2 {[%emt 0:01:34]} Qf5 {[%emt 0:04:38]} 16. Bd3 {[%emt 0:00:17]} Qh5 {[%emt 0:00:28]} 17. Rfe1 {[%emt 0:01:42]} b6 {[%emt 0:08:18]} 18. Be4 {[%emt 0:30:13]} Bb7 {[%emt 0:01:18]} 19. Ne5 {[%emt 0:03:05]} Ne7 {[%emt 0:10:19]} 20. Nc4 {[%emt 0:03:40]} Red8 {[%emt 0:05:11]} 21. Bc7 {[%emt 0:01:54]} Rdc8 {[%emt 0:02:34]} 22. Be5 {[%emt 0:01:38]} Ba6 {[%emt 0:01:32]} 23. Nd6 {[%emt 0:00:27]} Rd8 {[%emt 0:00:54]} 24. b5 {[%emt 0:10:34]} cxb5 {[%emt 0:04:31]} 25. Rd3 {[%emt 0:01:23]} Bxe5 {[%emt 0:00:38]} 26. dxe5 {[%emt 0:02:44]} Rab8 {[%emt 0:00:32]} 27. Rh3 {[%emt 0:00:59]} Qg5 {[%emt 0:00:25]} 28. Bxh7+ {[%emt 0:03:46]} Kf8 {[%emt 0:00:03]} 29. Rf3 {[%emt 0:01:08]} Rxd6 {[%emt 0:00:54]} 30. exd6 {[%emt 0:00:07]} Nd5 {[%emt 0:00:08]} 31. Be4 {[%emt 0:05:25]} Nf6 {[%emt 0:00:39]} 32. Rg3 {[%emt 0:00:44]} Qf4 {[%emt 0:00:32]} 33. d7 {[%emt 0:01:04]} Nxd7 {[%emt 0:00:39]} 34. Rf3 {[%emt 0:00:21]} Qe5 {[%emt 0:00:37]} 35. Rxf7+ {[%emt 0:02:17]} Kxf7 {[%emt 0:00:26]} 36. Bg6+ {[%emt 0:00:02]} Ke7 {[%emt 0:00:31]} 37. Rxe5 {[%emt 0:00:08]} Nxe5 {[%emt 0:00:01]} 38. Be4 {[%emt 0:00:11]} Rd8 {[%emt 0:00:54]} 39. f4 {[%emt 0:00:25]} Nc4 {[%emt 0:00:33]} 40. Bf3 {[%emt 0:00:47]} Rd2 {[%emt 0:00:34]} 41. Qg6 {[%emt 0:03:05]} Rd7 {[%emt 0:10:05]} 42. Bg4 {[%emt 0:01:35]} 1-0

[Event "SWE-ch Class 1 2019"]
[Site "Eskilstuna"]
[Date "2019.07.09"]
[Round "2.3"]
[White "Nordstrom, Felix"]
[Black "Attefall, Fredrik"]
[Result "1-0"]
[ECO "D13"]
[WhiteElo "2064"]
[BlackElo "2077"]
[Annotator "NA"]
[PlyCount "43"]
[EventDate "2019.07.06"]
[EventType "tourn"]
[EventCountry "SWE"]
[SourceTitle "playchess.com"]
[Source "ChessBase"]
[SourceQuality "1"]
[TimeControl "40/5400+30:1800+30"]

1. d4 {[%emt 0:00:00]} d5 {[%emt 0:00:00]} 2. c4 {[%emt 0:00:00]} c6 {[%emt 0:00:00]} 3. Nf3 {[%emt 0:00:00]} Nf6 {[%emt 0:00:03]} 4. Nc3 {[%emt 0:00:43]} Bf5 {[%emt 0:01:25]} 5. cxd5 {[%emt 0:01:11]} cxd5 {[%emt 0:09:17]} 6. Qb3 {[%emt 0:00:37]} Qb6 {[%emt 0:01:12]} 7. Nxd5 {[%emt 0:01:27]} Qxb3 {[%emt 0:02:19]} 8. Nxf6+ {[%emt 0:00:21]} exf6 {[%emt 0:00:22]} 9. axb3 {[%emt 0:00:08]} Bc2 {[%emt 0:01:29]} 10. Nd2 {[%emt 0:04:49]} Bb4 {[%emt 0:04:56]} 11. Ra4 {[%emt 0:06:05]} Bxd2+ {[%emt 0:28:10]} 12. Bxd2 {[%emt 0:01:17]} Bxb3 {[%emt 0:00:26]} 13. Ra3 {[%emt 0:05:23]} Bd5 {[%emt 0:02:14]} 14. f3 {[%emt 0:05:24]} f5 {[%emt 0:09:21]} 15. e3 {[%emt 0:02:21]} O-O {[%emt 0:03:19]} 16. Bd3 {[%emt 0:00:55]} g6 {[%emt 0:05:12]} 17. Kf2 {[%emt 0:04:29]} f6 {[%emt 0:04:20]} 18. Rc1 {[%emt 0:08:27]} Nc6 {[%emt 0:00:43]} 19. Rc5 {[%emt 0:04:17]} Rfd8 {[%emt 0:01:56]} 20. Rxd5 {[%emt 0:07:51]} Rxd5 {[%emt 0:00:20]} 21. Bc4 {[%emt 0:00:02]} Rad8 {[%emt 0:04:44]} 22. e4 {[%emt 0:00:49]} 1-0

[Event "SWE-ch Class 1 2019"]
[Site "Eskilstuna"]
[Date "2019.07.09"]
[Round "2.4"]
[White "Halvarsson, Peter"]
[Black "Lyngsjo, Hakan"]
[Result "0-1"]
[ECO "B02"]
[WhiteElo "1903"]
[BlackElo "2029"]
[Annotator "NA"]
[PlyCount "74"]
[EventDate "2019.07.06"]
[EventType "tourn"]
[EventCountry "SWE"]
[SourceTitle "playchess.com"]
[Source "ChessBase"]
[SourceQuality "1"]
[TimeControl "40/5400+30:1800+30"]

1. e4 {[%emt 0:00:00]} Nf6 {[%emt 0:00:00]} 2. Nc3 {[%emt 0:00:00]} d5 {[%emt 0:00:57]} 3. e5 {[%emt 0:00:03]} Ne4 {[%emt 0:01:00]} 4. d4 {[%emt 0:01:55]} Nxc3 {[%emt 0:01:08]} 5. bxc3 {[%emt 0:00:07]} c5 {[%emt 0:00:44]} 6. Bb5+ {[%emt 0:22:38]} Bd7 {[%emt 0:04:17]} 7. Bxd7+ {[%emt 0:01:18]} Qxd7 {[%emt 0:00:08]} 8. Ne2 {[%emt 0:06:57]} Nc6 {[%emt 0:03:21]} 9. O-O {[%emt 0:02:30]} e6 {[%emt 0:18:34]} 10. f4 {[%emt 0:08:49]} Na5 {[%emt 0:06:12]} 11. Qd3 {[%emt 0:07:42]} g6 {[%emt 0:07:16]} 12. Kh1 {[%emt 0:10:17]} Nc4 {[%emt 0:05:13]} 13. Ng3 {[%emt 0:08:25]} Be7 {[%emt 0:06:26]} 14. Rb1 {[%emt 0:01:53]} b6 {[%emt 0:03:30]} 15. Be3 {[%emt 0:06:24]} Rc8 {[%emt 0:03:24]} 16. Bf2 {[%emt 0:04:47]} Qa4 {[%emt 0:01:05]} 17. dxc5 {[%emt 0:02:42]} Bxc5 {[%emt 0:02:47]} 18. Bxc5 {[%emt 0:01:30]} Rxc5 {[%emt 0:00:49]} 19. f5 {[%emt 0:05:22]} gxf5 {[%emt 0:05:18]} 20. Nxf5 {[%emt 0:03:27]} exf5 {[%emt 0:06:06]} 21. Qxf5 {[%emt 0:00:01]} Qd7 {[%emt 0:00:32]} 22. e6 {[%emt 0:02:38]} fxe6 {[%emt 0:00:01]} 23. Rbe1 {[%emt 0:00:19]} e5 {[%emt 0:03:52]} 24. Qh5+ {[%emt 0:00:01]} Kd8 {[%emt 0:00:08]} 25. Rf7 {[%emt 0:00:19]} Qe8 {[%emt 0:04:27]} 26. Qg5+ {[%emt 0:00:19]} Kc8 {[%emt 0:00:05]} 27. Rxa7 {[%emt 0:01:19]} Ra5 {[%emt 0:07:07]} 28. Re7 {[%emt 0:01:03]} Qg6 {[%emt 0:00:34]} 29. Qh4 {[%emt 0:00:52]} Rg8 {[%emt 0:01:08]} 30. Qh3+ {[%emt 0:00:29]} Qg4 {[%emt 0:00:17]} 31. Re8+ {[%emt 0:00:14]} Kc7 {[%emt 0:01:45]} 32. Rxg8 {[%emt 0:01:05]} Qxg8 {[%emt 0:00:06]} 33. Qf5 {[%emt 0:00:34]} Qg6 {[%emt 0:02:38]} 34. Qf8 {[%emt 0:00:01]} Rxa2 {[%emt 0:02:23]} 35. Rf1 {[%emt 0:00:46]} Nd6 {[%emt 0:00:50]} 36. h3 {[%emt 0:00:26]} Rxc2 {[%emt 0:00:33]} 37. Qf3 {[%emt 0:00:45]} e4 {[%emt 0:00:43]} 0-1

[Event "SWE-ch Class 1 2019"]
[Site "Eskilstuna"]
[Date "2019.07.09"]
[Round "2.5"]
[White "Carlsson, Gustav"]
[Black "Muganlinskij, Hussein"]
[Result "1-0"]
[ECO "D78"]
[WhiteElo "1982"]
[BlackElo "2022"]
[Annotator "NA"]
[PlyCount "97"]
[EventDate "2019.07.06"]
[EventType "tourn"]
[EventCountry "SWE"]
[SourceTitle "playchess.com"]
[Source "ChessBase"]
[SourceQuality "1"]
[TimeControl "40/5400+30:1800+30"]

1. c4 {[%emt 0:00:00]} c6 {[%emt 0:00:00]} 2. g3 {[%emt 0:00:00]} d5 {[%emt 0:00:00]} 3. Bg2 {[%emt 0:00:00]} Nf6 {[%emt 0:00:06]} 4. Nf3 {[%emt 0:00:46]} g6 {[%emt 0:04:30]} 5. b3 {[%emt 0:05:29]} Bg7 {[%emt 0:00:20]} 6. Bb2 {[%emt 0:00:18]} O-O {[%emt 0:00:18]} 7. O-O {[%emt 0:00:32]} a5 {[%emt 0:00:09]} 8. d4 {[%emt 0:06:32]} a4 {[%emt 0:01:17]} 9. Nbd2 {[%emt 0:02:10]} Bf5 {[%emt 0:06:17]} 10. Nh4 {[%emt 0:04:26]} Bg4 {[%emt 0:01:56]} 11. h3 {[%emt 0:02:12]} Be6 {[%emt 0:01:54]} 12. c5 {[%emt 0:02:09]} Qa5 {[%emt 0:07:19]} 13. Rc1 {[%emt 0:08:26]} b5 {[%emt 0:03:38]} 14. b4 {[%emt 0:06:41]} Qc7 {[%emt 0:00:40]} 15. a3 {[%emt 0:00:35]} g5 {[%emt 0:03:21]} 16. Nhf3 {[%emt 0:00:54]} g4 {[%emt 0:01:45]} 17. hxg4 {[%emt 0:05:13]} Bxg4 {[%emt 0:00:23]} 18. Ne5 {[%emt 0:02:33]} Bh5 {[%emt 0:00:14]} 19. Re1 {[%emt 0:01:27]} e6 {[%emt 0:04:34]} 20. Bf3 {[%emt 0:04:50]} Bg6 {[%emt 0:02:21]} 21. Nxg6 {[%emt 0:01:03]} hxg6 {[%emt 0:00:14]} 22. e4 {[%emt 0:01:01]} dxe4 {[%emt 0:00:38]} 23. Nxe4 {[%emt 0:00:45]} Nxe4 {[%emt 0:00:09]} 24. Rxe4 {[%emt 0:02:40]} Nd7 {[%emt 0:00:49]} 25. Kg2 {[%emt 0:07:49]} Nf6 {[%emt 0:01:37]} 26. Rh4 {[%emt 0:00:20]} Rfd8 {[%emt 0:08:49]} 27. Qh1 {[%emt 0:04:29]} Nd5 {[%emt 0:01:09]} 28. Qh3 {[%emt 0:02:35]} Nf6 {[%emt 0:11:25]} 29. Rh1 {[%emt 0:02:51]} Kf8 {[%emt 0:06:31]} 30. Rf4 {[%emt 0:06:01]} g5 {[%emt 0:03:31]} 31. d5 {[%emt 0:08:07]} gxf4 {[%emt 0:03:04]} 32. d6 {[%emt 0:00:36]} Qb7 {[%emt 0:06:02]} 33. Qh4 {[%emt 0:00:34]} Ng8 {[%emt 0:08:32]} 34. Bxg7+ {[%emt 0:00:54]} Ke8 {[%emt 0:00:07]} 35. Qxf4 {[%emt 0:02:23]} f5 {[%emt 0:02:27]} 36. Qe5 {[%emt 0:02:04]} Kd7 {[%emt 0:00:36]} 37. Bf6 {[%emt 0:03:12]} Nxf6 {[%emt 0:01:32]} 38. Qxf6 {[%emt 0:00:07]} Kc8 {[%emt 0:01:20]} 39. Qxe6+ {[%emt 0:00:56]} Kb8 {[%emt 0:00:44]} 40. Qxf5 {[%emt 0:00:26]} Ra7 {[%emt 0:00:44]} 41. Qe4 {[%emt 0:31:23]} Qf7 {[%emt 0:34:46]} 42. Qxc6 {[%emt 0:01:22]} Rf8 {[%emt 0:00:12]} 43. Qb6+ {[%emt 0:01:47]} Kc8 {[%emt 0:00:50]} 44. Bg4+ {[%emt 0:00:10]} Rd7 {[%emt 0:00:16]} 45. Bxd7+ {[%emt 0:00:38]} Qxd7 {[%emt 0:00:13]} 46. Qc7+ {[%emt 0:00:52]} Qxc7 {[%emt 0:00:08]} 47. dxc7 {[%emt 0:00:05]} Kxc7 {[%emt 0:00:10]} 48. Re1 {[%emt 0:00:40]} Rd8 {[%emt 0:00:04]} 49. Re3 {[%emt 0:00:12]} 1-0

[Event "SWE-ch Class 1 2019"]
[Site "Eskilstuna"]
[Date "2019.07.09"]
[Round "2.6"]
[White "Arvidsson, Jonas"]
[Black "Eriksson, Joel"]
[Result "1-0"]
[ECO "C06"]
[WhiteElo "1965"]
[BlackElo "1998"]
[Annotator "NA"]
[PlyCount "67"]
[EventDate "2019.07.06"]
[EventType "tourn"]
[EventCountry "SWE"]
[SourceTitle "playchess.com"]
[Source "ChessBase"]
[SourceQuality "1"]
[TimeControl "40/5400+30:1800+30"]

1. e4 {[%emt 0:00:00]} e6 {[%emt 0:01:27]} 2. d4 {[%emt 0:00:00]} d5 {[%emt 0:00:05]} 3. Nd2 {[%emt 0:00:00]} Nf6 {[%emt 0:00:16]} 4. e5 {[%emt 0:00:07]} Nfd7 {[%emt 0:00:05]} 5. Bd3 {[%emt 0:00:41]} c5 {[%emt 0:00:15]} 6. c3 {[%emt 0:00:07]} b5 {[%emt 0:00:11]} 7. Bxb5 {[%emt 0:05:25]} Qb6 {[%emt 0:01:44]} 8. Bxd7+ {[%emt 0:08:52]} Nxd7 {[%emt 0:00:24]} 9. Ne2 {[%emt 0:01:45]} Ba6 {[%emt 0:01:28]} 10. O-O {[%emt 0:08:41]} Be7 {[%emt 0:06:35]} 11. Kh1 {[%emt 0:12:56]} cxd4 {[%emt 0:08:17]} 12. cxd4 {[%emt 0:00:32]} Bxe2 {[%emt 0:00:20]} 13. Qxe2 {[%emt 0:00:29]} Qxd4 {[%emt 0:05:33]} 14. f4 {[%emt 0:02:38]} Rc8 {[%emt 0:06:50]} 15. Nb3 {[%emt 0:04:59]} Qc4 {[%emt 0:05:48]} 16. Qf3 {[%emt 0:05:46]} O-O {[%emt 0:02:04]} 17. Be3 {[%emt 0:03:40]} Qa4 {[%emt 0:00:33]} 18. Bd4 {[%emt 0:03:19]} Bc5 {[%emt 0:14:17]} 19. Bxc5 {[%emt 0:05:03]} Nxc5 {[%emt 0:00:16]} 20. Nxc5 {[%emt 0:00:05]} Rxc5 {[%emt 0:00:05]} 21. f5 {[%emt 0:00:08]} exf5 {[%emt 0:05:02]} 22. Qxf5 {[%emt 0:02:12]} Qe4 {[%emt 0:01:54]} 23. Qg5 {[%emt 0:04:37]} h6 {[%emt 0:03:31]} 24. Qg3 {[%emt 0:02:02]} d4 {[%emt 0:07:14]} 25. Rae1 {[%emt 0:01:22]} Qa8 {[%emt 0:06:20]} 26. Rf4 {[%emt 0:04:41]} Rc2 {[%emt 0:03:40]} 27. Rg4 {[%emt 0:01:46]} g5 {[%emt 0:01:41]} 28. h4 {[%emt 0:01:01]} Qc6 {[%emt 0:04:00]} 29. hxg5 {[%emt 0:00:40]} h5 {[%emt 0:00:17]} 30. Rxd4 {[%emt 0:02:26]} Rxb2 {[%emt 0:01:42]} 31. Rd6 {[%emt 0:01:21]} Qc2 {[%emt 0:01:41]} 32. g6 {[%emt 0:00:45]} Qf5 {[%emt 0:04:43]} 33. gxf7+ {[%emt 0:00:35]} Kh7 {[%emt 0:00:10]} 34. e6 {[%emt 0:01:52]} 1-0